[Event "Manhem Chess Week-GM 2019"]
[Site "Moelnlycke"]
[Date "2019.08.11"]
[Round "3.2"]
[White "Lindgren, Philip"]
[Black "Urkedal, Frode Olav Olsen"]
[Result "0-1"]
[ECO "E15"]
[WhiteElo "2362"]
[BlackElo "2566"]
[Annotator "ChessBase"]
[PlyCount "102"]
[EventDate "2019.08.10"]
[EventType "tourn"]
[EventCountry "SWE"]
[SourceTitle "playchess.com"]
[Source "ChessBase"]
[SourceQuality "1"]
[TimeControl "40/5400+30:1800+30"]

1. d4 {[%emt 0:00:00]} Nf6 {[%emt 0:00:00]} 2. c4 {[%emt 0:00:11]} e6 {[%emt 0:00:00]} 3. g3 {[%emt 0:00:30]} d5 {[%emt 0:00:00]} 4. Nf3 {[%emt 0:00:23]} Bb4+ {[%emt 0:00:09]} 5. Bd2 {[%emt 0:00:35]} Be7 {[%emt 0:00:07]} 6. Bg2 {[%emt 0:03:34]} O-O {[%emt 0:00:32]} 7. Qc2 {[%emt 0:00:36]} Nbd7 {[%emt 0:00:50]} 8. O-O {[%emt 0:01:12]} c6 {[%emt 0:00:20]} 9. Rd1 {[%emt 0:03:44]} b6 {[%emt 0:01:02]} 10. Bf4 {[%emt 0:01:25]} Ba6 {[%emt 0:00:06]} 11. b3 {[%emt 0:06:32]} Rc8 {[%emt 0:01:19]} 12. Nc3 {[%emt 0:08:45]} dxc4 {[%emt 0:09:27]} 13. e4 {[%emt 0:05:16]} Bb4 {[%emt 0:05:12]} 14. Bd2 {[%emt 0:08:27]} Re8 {[%emt 0:09:15]} 15. e5 {[%emt 0:08:48]} Bxc3 {[%emt 0:03:00]} 16. Bxc3 {[%emt 0:02:22]} Nd5 {[%emt 0:00:27]} 17. bxc4 {[%emt 0:04:12]} Bxc4 {[%emt 0:01:03]} 18. Bd2 {[%emt 0:02:35]} Be2 {[%emt 0:03:13]} 19. Ng5 {[%emt 0:00:58]} Nf8 {[%emt 0:13:50]} 20. Rdc1 {[%emt 0:01:14]} c5 {[%emt 0:03:57]} 21. dxc5 {[%emt 0:10:20]} Rxc5 {[%emt 0:01:28]} 22. Qb2 {[%emt 0:05:13]} Rb5 {[%emt 0:14:49]} 23. Qd4 {[%emt 0:03:24]} Ne7 {[%emt 0:09:49]} 24. Qf4 {[%emt 0:10:31]} Bh5 {[%emt 0:04:00]} 25. a4 {[%emt 0:03:13]} Rc5 {[%emt 0:02:01]} 26. Rxc5 {[%emt 0:05:26]} bxc5 {[%emt 0:00:14]} 27. Qe3 {[%emt 0:03:22]} Nf5 {[%emt 0:01:02]} 28. Qc3 {[%emt 0:00:25]} Nd4 {[%emt 0:00:27]} 29. Kh1 {[%emt 0:00:23]} Ne2 {[%emt 0:01:20]} 30. Qe3 {[%emt 0:00:42]} Qd4 {[%emt 0:02:47]} 31. Qxd4 {[%emt 0:00:24]} Nxd4 {[%emt 0:00:41]} 32. Rb1 {[%emt 0:00:46]} Rd8 {[%emt 0:00:16]} 33. Ne4 {[%emt 0:00:23]} Bg6 {[%emt 0:02:55]} 34. Be3 {[%emt 0:00:35]} Nd7 {[%emt 0:01:44]} 35. f4 {[%emt 0:00:22]} Nb6 {[%emt 0:00:06]} 36. Bf2 {[%emt 0:00:40]} Nxa4 {[%emt 0:00:40]} 37. Ra1 {[%emt 0:00:30]} Bxe4 {[%emt 0:01:35]} 38. Bxe4 {[%emt 0:00:19]} Nc3 {[%emt 0:00:09]} 39. Bb7 {[%emt 0:00:42]} Ncb5 {[%emt 0:01:41]} 40. Ba6 {[%emt 0:00:29]} Nb3 {[%emt 0:02:30]} 41. Ra2 {[%emt 0:08:08]} Nc3 {[%emt 0:06:42]} 42. Ra3 {[%emt 0:03:31]} Rb8 {[%emt 0:03:52]} 43. Bc4 {[%emt 0:02:26]} Ne4 {[%emt 0:00:23]} 44. Be3 {[%emt 0:05:48]} Nbd2 {[%emt 0:01:00]} 45. Ba2 {[%emt 0:01:38]} h5 {[%emt 0:02:20]} 46. f5 {[%emt 0:03:39]} c4 {[%emt 0:04:06]} 47. fxe6 {[%emt 0:01:58]} fxe6 {[%emt 0:00:02]} 48. Bd4 {[%emt 0:00:57]} Rd8 {[%emt 0:04:58]} 49. Bxa7 {[%emt 0:05:50]} Ra8 {[%emt 0:00:20]} 50. Bc5 {[%emt 0:00:54]} Rxa3 {[%emt 0:00:11]} 51. Bxa3 {[%emt 0:00:07]} Nc3 {[%emt 0:00:33]} 0-1

[Event "Manhem Chess Week-GM 2019"]
[Site "Moelnlycke"]
[Date "2019.08.11"]
[Round "3.3"]
[White "Ahlander, Bjorn"]
[Black "Blomqvist, Erik"]
[Result "1/2-1/2"]
[ECO "A47"]
[WhiteElo "2391"]
[BlackElo "2492"]
[Annotator "ChessBase"]
[PlyCount "86"]
[EventDate "2019.08.10"]
[EventType "tourn"]
[EventCountry "SWE"]
[SourceTitle "playchess.com"]
[Source "ChessBase"]
[SourceQuality "1"]
[TimeControl "40/5400+30:1800+30"]

1. d4 {[%emt 0:00:00]} Nf6 {[%emt 0:00:00]} 2. Nf3 {[%emt 0:00:00]} e6 {[%emt 0:02:46]} 3. g3 {[%emt 0:00:24]} b6 {[%emt 0:03:29]} 4. Bg2 {[%emt 0:00:21]} Bb7 {[%emt 0:00:15]} 5. O-O {[%emt 0:00:10]} c5 {[%emt 0:00:39]} 6. c3 {[%emt 0:07:59]} Be7 {[%emt 0:00:38]} 7. Bg5 {[%emt 0:01:12]} O-O {[%emt 0:01:05]} 8. Nbd2 {[%emt 0:00:24]} d5 {[%emt 0:06:53]} 9. Bxf6 {[%emt 0:22:07]} Bxf6 {[%emt 0:00:15]} 10. Re1 {[%emt 0:01:06]} Nd7 {[%emt 0:11:36]} 11. e4 {[%emt 0:01:56]} cxd4 {[%emt 0:00:53]} 12. cxd4 {[%emt 0:03:08]} dxe4 {[%emt 0:03:06]} 13. Nxe4 {[%emt 0:01:19]} Be7 {[%emt 0:03:39]} 14. Qd3 {[%emt 0:07:39]} Rc8 {[%emt 0:02:11]} 15. a3 {[%emt 0:10:32]} Rc7 {[%emt 0:04:58]} 16. Nc3 {[%emt 0:06:55]} Qb8 {[%emt 0:07:58]} 17. h4 {[%emt 0:08:52]} Rd8 {[%emt 0:05:37]} 18. Ng5 {[%emt 0:01:07]} Nf6 {[%emt 0:06:51]} 19. Bh3 {[%emt 0:00:28]} Bd5 {[%emt 0:15:48]} 20. Nxd5 {[%emt 0:01:20]} exd5 {[%emt 0:00:04]} 21. Re3 {[%emt 0:02:10]} Bf8 {[%emt 0:09:15]} 22. Rae1 {[%emt 0:03:57]} g6 {[%emt 0:01:52]} 23. R3e2 {[%emt 0:04:32]} Bh6 {[%emt 0:03:31]} 24. Bg2 {[%emt 0:02:01]} Qc8 {[%emt 0:01:23]} 25. Bh3 {[%emt 0:00:41]} Qb7 {[%emt 0:01:21]} 26. Qf3 {[%emt 0:01:10]} Ne4 {[%emt 0:03:49]} 27. Nxe4 {[%emt 0:04:06]} dxe4 {[%emt 0:00:04]} 28. Rxe4 {[%emt 0:03:27]} Rxd4 {[%emt 0:02:21]} 29. Re8+ {[%emt 0:00:18]} Kg7 {[%emt 0:00:17]} 30. Qe2 {[%emt 0:01:35]} Qd5 {[%emt 0:00:19]} 31. Rb8 {[%emt 0:01:13]} Rc1 {[%emt 0:01:32]} 32. Rxc1 {[%emt 0:01:26]} Bxc1 {[%emt 0:00:04]} 33. Bg2 {[%emt 0:00:43]} Qd6 {[%emt 0:01:23]} 34. Rb7 {[%emt 0:01:25]} Rd1+ {[%emt 0:00:35]} 35. Kh2 {[%emt 0:00:09]} Rd2 {[%emt 0:00:28]} 36. Qf3 {[%emt 0:01:20]} Qf6 {[%emt 0:00:24]} 37. Qxf6+ {[%emt 0:00:38]} Kxf6 {[%emt 0:00:02]} 38. Rxa7 {[%emt 0:00:33]} Bxb2 {[%emt 0:01:07]} 39. f4 {[%emt 0:00:25]} Bd4 {[%emt 0:00:18]} 40. Rc7 {[%emt 0:00:39]} Bc5 {[%emt 0:00:14]} 41. a4 {[%emt 0:30:29]} h5 {[%emt 0:07:07]} 42. a5 {[%emt 0:00:00]} Bd6 {[%emt 0:02:32]} 43. Ra7 {[%emt 0:00:00]} bxa5 {[%emt 0:00:17]} 1/2-1/2

[Event "Manhem Chess Week-GM 2019"]
[Site "Moelnlycke"]
[Date "2019.08.11"]
[Round "3.5"]
[White "Wiedenkeller, Michael"]
[Black "Hector, Jonny"]
[Result "1/2-1/2"]
[ECO "D10"]
[WhiteElo "2461"]
[BlackElo "2487"]
[Annotator "ChessBase"]
[PlyCount "109"]
[EventDate "2019.08.10"]
[EventType "tourn"]
[EventCountry "SWE"]
[SourceTitle "playchess.com"]
[Source "ChessBase"]
[SourceQuality "1"]
[TimeControl "40/5400+30:1800+30"]

1. d4 {[%emt 0:00:00]} d5 {[%emt 0:00:00]} 2. c4 {[%emt 0:00:22]} c6 {[%emt 0:00:00]} 3. cxd5 {[%emt 0:00:26]} cxd5 {[%emt 0:00:00]} 4. Bf4 {[%emt 0:00:26]} Nc6 {[%emt 0:00:02]} 5. e3 {[%emt 0:00:17]} Nf6 {[%emt 0:00:31]} 6. Nc3 {[%emt 0:00:17]} Bf5 {[%emt 0:00:48]} 7. Qb3 {[%emt 0:01:54]} Na5 {[%emt 0:00:16]} 8. Qa4+ {[%emt 0:00:21]} Bd7 {[%emt 0:00:16]} 9. Qc2 {[%emt 0:00:22]} e6 {[%emt 0:00:34]} 10. Nf3 {[%emt 0:03:34]} Rc8 {[%emt 0:05:49]} 11. Bd3 {[%emt 0:03:31]} Nc6 {[%emt 0:00:44]} 12. a3 {[%emt 0:01:39]} Be7 {[%emt 0:03:13]} 13. h3 {[%emt 0:00:52]} Nh5 {[%emt 0:04:31]} 14. Bh2 {[%emt 0:03:17]} g6 {[%emt 0:01:29]} 15. Ne5 {[%emt 0:11:28]} Nxe5 {[%emt 0:04:22]} 16. Bxe5 {[%emt 0:00:22]} f6 {[%emt 0:00:58]} 17. Bh2 {[%emt 0:00:38]} O-O {[%emt 0:06:10]} 18. O-O {[%emt 0:02:54]} f5 {[%emt 0:03:56]} 19. Qb3 {[%emt 0:08:36]} Bc6 {[%emt 0:01:54]} 20. Be2 {[%emt 0:01:00]} Nf6 {[%emt 0:01:09]} 21. f3 {[%emt 0:03:37]} Bd6 {[%emt 0:02:27]} 22. Be5 {[%emt 0:10:05]} Bxe5 {[%emt 0:05:12]} 23. dxe5 {[%emt 0:00:06]} Nd7 {[%emt 0:00:28]} 24. f4 {[%emt 0:02:42]} g5 {[%emt 0:09:18]} 25. Qb4 {[%emt 0:04:01]} Rf7 {[%emt 0:05:51]} 26. Qd6 {[%emt 0:05:44]} gxf4 {[%emt 0:02:59]} 27. Bh5 {[%emt 0:02:53]} Re7 {[%emt 0:01:25]} 28. exf4 {[%emt 0:02:33]} Nb6 {[%emt 0:03:34]} 29. Ne2 {[%emt 0:06:07]} Bd7 {[%emt 0:13:54]} 30. b3 {[%emt 0:06:20]} a5 {[%emt 0:12:17]} 31. Nd4 {[%emt 0:04:49]} a4 {[%emt 0:01:39]} 32. Rab1 {[%emt 0:03:46]} axb3 {[%emt 0:01:47]} 33. Rxb3 {[%emt 0:00:06]} Nc4 {[%emt 0:00:11]} 34. Rg3+ {[%emt 0:00:24]} Kh8 {[%emt 0:02:35]} 35. Qb4 {[%emt 0:00:01]} b5 {[%emt 0:01:09]} 36. Nxb5 {[%emt 0:02:53]} Rb8 {[%emt 0:01:24]} 37. a4 {[%emt 0:00:16]} Bxb5 {[%emt 0:00:08]} 38. axb5 {[%emt 0:00:14]} Reb7 {[%emt 0:00:43]} 39. Rb3 {[%emt 0:02:38]} Qb6+ {[%emt 0:01:15]} 40. Kh2 {[%emt 0:01:23]} Qxb5 {[%emt 0:01:34]} 41. Qxb5 {[%emt 0:31:20]} Rxb5 {[%emt 0:30:03]} 42. Rxb5 {[%emt 0:01:58]} Rxb5 {[%emt 0:00:40]} 43. Be2 {[%emt 0:01:28]} Rb4 {[%emt 0:02:45]} 44. Bxc4 {[%emt 0:00:00]} dxc4 {[%emt 0:00:00]} 45. Rc1 {[%emt 0:00:00]} Kg7 {[%emt 0:00:00]} 46. g4 {[%emt 0:00:00]} Kg6 {[%emt 0:00:00]} 47. Kg3 {[%emt 0:00:00]} Rb3+ {[%emt 0:00:00]} 48. Kh4 {[%emt 0:00:00]} c3 {[%emt 0:00:00]} 49. Rc2 {[%emt 0:00:00]} h5 {[%emt 0:00:00]} 50. Kg3 {[%emt 0:00:00]} Ra3 {[%emt 0:00:00]} 51. g5 {[%emt 0:00:00]} Kg7 {[%emt 0:00:00]} 52. h4 {[%emt 0:00:00]} Kg6 {[%emt 0:00:00]} 53. Kf3 {[%emt 0:00:00]} Kg7 {[%emt 0:00:00]} 54. Ke3 {[%emt 0:00:00]} Kf7 {[%emt 0:00:00]} 55. Kf3 {[%emt 0:01:25]} 1/2-1/2

[Event "Manhem Chess Week-GM 2019"]
[Site "Moelnlycke"]
[Date "2019.08.13"]
[Round "5.1"]
[White "Blomqvist, Erik"]
[Black "Seo, Jung Min"]
[Result "1/2-1/2"]
[ECO "B28"]
[WhiteElo "2492"]
[BlackElo "2399"]
[Annotator "ChessBase"]
[PlyCount "109"]
[EventDate "2019.08.10"]
[EventType "tourn"]
[EventCountry "SWE"]
[SourceTitle "playchess.com"]
[Source "ChessBase"]
[SourceQuality "1"]
[TimeControl "40/5400+30:1800+30"]

1. e4 {[%emt 0:00:00]} c5 {[%emt 0:00:00]} 2. Nf3 {[%emt 0:00:00]} a6 {[%emt 0:00:00]} 3. c3 {[%emt 0:00:53]} e6 {[%emt 0:00:47]} 4. d4 {[%emt 0:00:38]} d5 {[%emt 0:00:05]} 5. e5 {[%emt 0:07:13]} Nc6 {[%emt 0:00:45]} 6. Be3 {[%emt 0:04:41]} Qb6 {[%emt 0:05:06]} 7. Qd2 {[%emt 0:01:19]} Nh6 {[%emt 0:01:14]} 8. dxc5 {[%emt 0:07:30]} Bxc5 {[%emt 0:00:15]} 9. Bxc5 {[%emt 0:00:13]} Qxc5 {[%emt 0:00:01]} 10. Bd3 {[%emt 0:03:54]} Ng4 {[%emt 0:01:12]} 11. Qe2 {[%emt 0:07:29]} f6 {[%emt 0:00:26]} 12. exf6 {[%emt 0:01:09]} Nxf6 {[%emt 0:00:01]} 13. O-O {[%emt 0:04:01]} O-O {[%emt 0:00:57]} 14. c4 {[%emt 0:15:29]} Nb4 {[%emt 0:12:05]} 15. Nbd2 {[%emt 0:01:07]} Nxd3 {[%emt 0:00:42]} 16. Qxd3 {[%emt 0:00:03]} dxc4 {[%emt 0:01:09]} 17. Qxc4 {[%emt 0:09:24]} Qxc4 {[%emt 0:00:08]} 18. Nxc4 {[%emt 0:00:10]} Bd7 {[%emt 0:02:41]} 19. Nfe5 {[%emt 0:04:00]} Bb5 {[%emt 0:00:18]} 20. Rfe1 {[%emt 0:00:37]} Bxc4 {[%emt 0:07:28]} 21. Nxc4 {[%emt 0:00:07]} Rfe8 {[%emt 0:01:39]} 22. Kf1 {[%emt 0:03:30]} Rad8 {[%emt 0:03:22]} 23. Re2 {[%emt 0:00:37]} Rd4 {[%emt 0:02:22]} 24. Ne5 {[%emt 0:02:53]} Red8 {[%emt 0:06:30]} 25. Ke1 {[%emt 0:01:39]} Rc8 {[%emt 0:01:08]} 26. g3 {[%emt 0:01:32]} Kf8 {[%emt 0:00:49]} 27. Rd1 {[%emt 0:01:42]} Rxd1+ {[%emt 0:00:13]} 28. Kxd1 {[%emt 0:00:04]} Ke7 {[%emt 0:00:19]} 29. f4 {[%emt 0:00:19]} Rd8+ {[%emt 0:00:40]} 30. Ke1 {[%emt 0:00:36]} Rc8 {[%emt 0:01:11]} 31. Nf3 {[%emt 0:01:10]} Kd6 {[%emt 0:01:20]} 32. Ng5 {[%emt 0:01:57]} Re8 {[%emt 0:00:08]} 33. Kf2 {[%emt 0:03:13]} h6 {[%emt 0:00:38]} 34. Nf3 {[%emt 0:01:51]} Nd7 {[%emt 0:03:54]} 35. Rd2+ {[%emt 0:00:32]} Kc7 {[%emt 0:01:19]} 36. Rc2+ {[%emt 0:00:44]} Kd6 {[%emt 0:00:35]} 37. Nd2 {[%emt 0:02:34]} Rb8 {[%emt 0:09:16]} 38. Kf3 {[%emt 0:02:23]} g6 {[%emt 0:02:32]} 39. Nc4+ {[%emt 0:05:31]} Ke7 {[%emt 0:00:06]} 40. Na5 {[%emt 0:01:02]} Kd6 {[%emt 0:00:56]} 41. Ke4 {[%emt 0:35:32]} g5 {[%emt 0:34:33]} 42. Nc4+ {[%emt 0:00:00]} Ke7 {[%emt 0:00:00]} 43. fxg5 {[%emt 0:00:00]} hxg5 {[%emt 0:00:00]} 44. Ne3 {[%emt 0:00:00]} Rh8 {[%emt 0:00:00]} 45. Ng4 {[%emt 0:00:00]} Nf6+ {[%emt 0:00:00]} 46. Kf3 {[%emt 0:00:00]} Nxg4 {[%emt 0:00:00]} 47. Kxg4 {[%emt 0:00:00]} Kf6 {[%emt 0:00:00]} 48. Rf2+ {[%emt 0:00:00]} Kg6 {[%emt 0:00:00]} 49. h4 {[%emt 0:00:00]} gxh4 {[%emt 0:00:00]} 50. gxh4 {[%emt 0:00:00]} Rd8 {[%emt 0:00:00]} 51. h5+ {[%emt 0:00:00]} Kg7 {[%emt 0:00:00]} 52. Kg5 {[%emt 0:00:00]} Rd5+ {[%emt 0:00:00]} 53. Kg4 {[%emt 0:00:00]} Rd4+ {[%emt 0:00:00]} 54. Kg5 {[%emt 0:00:00]} Rd5+ {[%emt 0:00:00]} 55. Kg4 {[%emt 0:00:04]} 1/2-1/2

[Event "Manhem Chess Week-GM 2019"]
[Site "Moelnlycke"]
[Date "2019.08.13"]
[Round "5.2"]
[White "Ahlander, Bjorn"]
[Black "Urkedal, Frode Olav Olsen"]
[Result "*"]
[ECO "D55"]
[WhiteElo "2391"]
[BlackElo "2566"]
[Annotator "ChessBase"]
[PlyCount "117"]
[EventDate "2019.08.10"]
[EventType "tourn"]
[EventCountry "SWE"]
[SourceTitle "playchess.com"]
[Source "ChessBase"]
[SourceQuality "1"]
[TimeControl "40/5400+30:1800+30"]

1. Nf3 {[%emt 0:00:00]} Nf6 {[%emt 0:00:00]} 2. c4 {[%emt 0:00:00]} e6 {[%emt 0:00:30]} 3. Nc3 {[%emt 0:00:00]} d5 {[%emt 0:00:19]} 4. d4 {[%emt 0:00:00]} Be7 {[%emt 0:00:27]} 5. Bg5 {[%emt 0:00:19]} h6 {[%emt 0:00:14]} 6. Bxf6 {[%emt 0:01:03]} Bxf6 {[%emt 0:00:05]} 7. e3 {[%emt 0:00:08]} O-O {[%emt 0:00:32]} 8. Rc1 {[%emt 0:00:18]} c6 {[%emt 0:00:14]} 9. Bd3 {[%emt 0:00:50]} Nd7 {[%emt 0:01:39]} 10. O-O {[%emt 0:00:18]} b6 {[%emt 0:09:12]} 11. cxd5 {[%emt 0:12:14]} exd5 {[%emt 0:04:30]} 12. e4 {[%emt 0:01:06]} dxe4 {[%emt 0:06:27]} 13. Nxe4 {[%emt 0:00:41]} c5 {[%emt 0:03:16]} 14. Bb5 {[%emt 0:17:10]} cxd4 {[%emt 0:06:07]} 15. Nxf6+ {[%emt 0:02:26]} Nxf6 {[%emt 0:03:31]} 16. Qxd4 {[%emt 0:00:05]} Bb7 {[%emt 0:01:37]} 17. Bc6 {[%emt 0:02:20]} Bxc6 {[%emt 0:01:12]} 18. Rxc6 {[%emt 0:00:21]} Qxd4 {[%emt 0:01:14]} 19. Nxd4 {[%emt 0:00:03]} Rfd8 {[%emt 0:00:07]} 20. Rc4 {[%emt 0:20:11]} Ne4 {[%emt 0:01:32]} 21. Nc6 {[%emt 0:01:54]} Nd2 {[%emt 0:00:07]} 22. Rc2 {[%emt 0:02:21]} Nxf1 {[%emt 0:05:28]} 23. Nxd8 {[%emt 0:00:35]} Ne3 {[%emt 0:03:52]} 24. fxe3 {[%emt 0:00:58]} Rxd8 {[%emt 0:00:08]} 25. h4 {[%emt 0:02:57]} Rd1+ {[%emt 0:05:27]} 26. Kf2 {[%emt 0:00:15]} Rb1 {[%emt 0:00:48]} 27. Kf3 {[%emt 0:06:27]} g6 {[%emt 0:04:00]} 28. b3 {[%emt 0:01:03]} Ra1 {[%emt 0:03:16]} 29. a4 {[%emt 0:03:05]} Rb1 {[%emt 0:00:50]} 30. Rc7 {[%emt 0:01:02]} a6 {[%emt 0:05:53]} 31. Rc3 {[%emt 0:00:58]} h5 {[%emt 0:01:42]} 32. Ke4 {[%emt 0:02:25]} b5 {[%emt 0:10:21]} 33. axb5 {[%emt 0:04:30]} axb5 {[%emt 0:00:12]} 34. g3 {[%emt 0:05:13]} Kg7 {[%emt 0:06:27]} 35. Kd4 {[%emt 0:03:33]} b4 {[%emt 0:01:31]} 36. Rd3 {[%emt 0:00:04]} Rc1 {[%emt 0:00:31]} 37. Ke4 {[%emt 0:01:38]} Rg1 {[%emt 0:01:44]} 38. Kf4 {[%emt 0:02:23]} Rf1+ {[%emt 0:06:47]} 39. Ke4 {[%emt 0:02:08]} Rg1 {[%emt 0:04:11]} 40. Kf3 {[%emt 0:02:33]} Rb1 {[%emt 0:00:15]} 41. Ke4 {[%emt 0:34:03]} Kf6 {[%emt 0:32:24]} 42. Kf4 {[%emt 0:00:00]} Rf1+ {[%emt 0:00:00]} 43. Ke4 {[%emt 0:00:00]} Ke6 {[%emt 0:00:00]} 44. Rd4 {[%emt 0:16:23]} f5+ {[%emt 0:00:00]} 45. Kd3 {[%emt 0:00:00]} Rf3 {[%emt 0:00:00]} 46. Rxb4 {[%emt 0:00:00]} Rxg3 {[%emt 0:00:00]} 47. Rb6+ {[%emt 0:00:00]} Kd5 {[%emt 0:00:00]} 48. Ke2 {[%emt 0:00:00]} Kc5 {[%emt 0:00:00]} 49. Rf6 {[%emt 0:00:00]} Kb4 {[%emt 0:00:00]} 50. Rb6+ {[%emt 0:00:00]} Kc3 {[%emt 0:00:00]} 51. Kf2 {[%emt 0:00:00]} Rg4 {[%emt 0:00:00]} 52. Kf3 {[%emt 0:00:09]} Kc2 {[%emt 0:00:00]} 53. Kf2 {[%emt 0:00:34]} Kd2 {[%emt 0:00:00]} 54. Rd6+ {[%emt 0:00:07]} Kc3 {[%emt 0:00:00]} 55. Rb6 {[%emt 0:00:03]} Kc2 {[%emt 0:00:00]} 56. Kf3 {[%emt 0:00:23]} Kd2 {[%emt 0:00:00]} 57. Kf2 {[%emt 0:01:05]} Rxh4 {[%emt 0:00:00]} 58. Rd6+ {[%emt 0:00:38]} Kc3 {[%emt 0:00:00]} 59. Rxg6 {[%emt 0:00:07]} *

[Event "Manhem Chess Week-GM 2019"]
[Site "Moelnlycke"]
[Date "2019.08.13"]
[Round "5.3"]
[White "Wiedenkeller, Michael"]
[Black "Golubka, Petro"]
[Result "1/2-1/2"]
[ECO "E33"]
[WhiteElo "2461"]
[BlackElo "2483"]
[Annotator "ChessBase"]
[PlyCount "24"]
[EventDate "2019.08.10"]
[EventType "tourn"]
[EventCountry "SWE"]
[SourceTitle "playchess.com"]
[Source "ChessBase"]
[SourceQuality "1"]
[TimeControl "40/5400+30:1800+30"]

1. d4 {[%emt 0:00:00]} Nf6 {[%emt 0:00:39]} 2. c4 {[%emt 0:00:00]} e6 {[%emt 0:00:06]} 3. Nc3 {[%emt 0:00:09]} Bb4 {[%emt 0:00:06]} 4. Qc2 {[%emt 0:00:19]} Nc6 {[%emt 0:00:06]} 5. Nf3 {[%emt 0:00:53]} d5 {[%emt 0:01:20]} 6. cxd5 {[%emt 0:06:47]} exd5 {[%emt 0:03:04]} 7. Bg5 {[%emt 0:00:57]} h6 {[%emt 0:02:55]} 8. Bxf6 {[%emt 0:04:18]} Qxf6 {[%emt 0:00:15]} 9. e3 {[%emt 0:02:50]} O-O {[%emt 0:02:14]} 10. a3 {[%emt 0:06:17]} Bf5 {[%emt 0:04:03]} 11. Bd3 {[%emt 0:00:45]} Bxc3+ {[%emt 0:00:55]} 12. Qxc3 {[%emt 0:04:06]} Bxd3 {[%emt 0:00:45]} 1/2-1/2

[Event "Manhem Chess Week-GM 2019"]
[Site "Moelnlycke"]
[Date "2019.08.13"]
[Round "5.4"]
[White "Vypkhaniuk, Ihor"]
[Black "Hector, Jonny"]
[Result "1/2-1/2"]
[ECO "C48"]
[WhiteElo "2402"]
[BlackElo "2487"]
[Annotator "ChessBase"]
[PlyCount "41"]
[EventDate "2019.08.10"]
[EventType "tourn"]
[EventCountry "SWE"]
[SourceTitle "playchess.com"]
[Source "ChessBase"]
[SourceQuality "1"]
[TimeControl "40/5400+30:1800+30"]

1. e4 {[%emt 0:00:03]} e5 {[%emt 0:00:00]} 2. Nf3 {[%emt 0:00:22]} Nc6 {[%emt 0:00:00]} 3. Nc3 {[%emt 0:00:35]} Nf6 {[%emt 0:00:12]} 4. Bb5 {[%emt 0:00:28]} Nd4 {[%emt 0:01:48]} 5. Nxd4 {[%emt 0:00:40]} exd4 {[%emt 0:00:08]} 6. e5 {[%emt 0:00:11]} dxc3 {[%emt 0:00:23]} 7. exf6 {[%emt 0:00:08]} Qxf6 {[%emt 0:00:21]} 8. dxc3 {[%emt 0:00:15]} Qe5+ {[%emt 0:01:00]} 9. Be2 {[%emt 0:01:09]} Bc5 {[%emt 0:07:46]} 10. O-O {[%emt 0:02:20]} O-O {[%emt 0:00:42]} 11. Bd3 {[%emt 0:01:37]} d5 {[%emt 0:04:17]} 12. Qf3 {[%emt 0:05:19]} Bd6 {[%emt 0:07:32]} 13. g3 {[%emt 0:00:22]} c6 {[%emt 0:14:32]} 14. Bd2 {[%emt 0:02:11]} Qe6 {[%emt 0:01:59]} 15. Qh5 {[%emt 0:04:35]} g6 {[%emt 0:05:28]} 16. Qh6 {[%emt 0:11:14]} Bd7 {[%emt 0:07:37]} 17. Rfe1 {[%emt 0:03:46]} Qh3 {[%emt 0:00:54]} 18. c4 {[%emt 0:03:27]} dxc4 {[%emt 0:03:38]} 19. Bxc4 {[%emt 0:01:13]} Rfe8 {[%emt 0:01:26]} 20. Qxh3 {[%emt 0:01:10]} Bxh3 {[%emt 0:00:09]} 21. Bh6 {[%emt 0:11:49]} 1/2-1/2

[Event "Manhem Chess Week-GM 2019"]
[Site "Moelnlycke"]
[Date "2019.08.13"]
[Round "5.5"]
[White "Lindgren, Philip"]
[Black "Haubro, Martin"]
[Result "1/2-1/2"]
[ECO "E08"]
[WhiteElo "2362"]
[BlackElo "2356"]
[Annotator "ChessBase"]
[PlyCount "20"]
[EventDate "2019.08.10"]
[EventType "tourn"]
[EventCountry "SWE"]
[SourceTitle "playchess.com"]
[Source "ChessBase"]
[SourceQuality "1"]
[TimeControl "40/5400+30:1800+30"]

1. c4 {[%emt 0:00:09]} e6 {[%emt 0:00:00]} 2. g3 {[%emt 0:02:27]} d5 {[%emt 0:00:00]} 3. d4 {[%emt 0:01:04]} Bb4+ {[%emt 0:04:03]} 4. Bd2 {[%emt 0:04:17]} Be7 {[%emt 0:00:05]} 5. Nf3 {[%emt 0:01:27]} Nf6 {[%emt 0:00:07]} 6. Bg2 {[%emt 0:00:53]} O-O {[%emt 0:00:07]} 7. Qc2 {[%emt 0:00:29]} Nbd7 {[%emt 0:00:08]} 8. O-O {[%emt 0:00:55]} Ne4 {[%emt 0:00:07]} 9. Bf4 {[%emt 0:10:22]} c6 {[%emt 0:00:04]} 10. Nc3 {[%emt 0:01:10]} g5 {[%emt 0:00:08]} 1/2-1/2